bitfinex/quotes_ETHUSD_20240816
["timestamp","ask_amount","ask_price","bid_price","bid_amount"]
[1723820706876,3.85968,2590.9,2590.5,3.73433172]
[1723820707076,3.85943,2591.1,2590.5,7.59450172]
[1723820707308,3.85943,2591.1,2590.5,3.73433172]
[1723820707488,3.85922,2591.2,2590.7,3.85995]
[1723820707688,3.85922,2591.2,2590.6,7.86073562]
[1723820707999,3.85945,2591.1,2590.6,4.00073562]
[1723820708202,3.85945,2591.1,2590.6,6.86001]
[1723820708203,3.85938,2591.1,2590.6,6.86001]
[1723820708402,3.85938,2591.1,2590.6,3.0]
[1723820708576,3.85977,2590.9,2590.6,3.0]
[1723820708781,3.85936,2591.1,2590.6,6.86009]
[1723820708980,3.85936,2591.1,2590.6,3.0]
[1723820709206,3.85936,2591.1,2590.6,6.8601]
[1723820709400,3.85916,2591.3,2590.7,3.85994]
[1723820709401,7.71832,2591.3,2590.7,3.85994]
[1723820709600,3.8596,2591.0,2590.6,6.41001]
[1723820709883,3.85966,2590.9,2590.6,3.0]
[1723820710077,3.85966,2590.9,2589.0,0.80248875]
[1723820710078,3.86053,2590.4,2589.9,7.45]
[1723820710320,2.47598861,2590.8,2589.6,3.86152]
[1723820710321,3.86084,2590.2,2589.6,3.86152]
[1723820710645,3.86043,2590.4,2589.8,3.86129]
[1723820710779,3.86081,2590.2,2589.9,0.386129]
[1723820710985,3.86078,2590.2,2589.6,7.72299]
[1723820711308,3.86122,2589.9,2589.4,3.86176]
[1723820711888,3.86134,2589.8,2589.2,7.72421]
[1723820712214,3.86122,2589.9,2589.4,3.86189]
[1723820712433,3.86122,2589.9,2589.4,7.72371]
[1723820712720,3.86031,2590.5,2589.3,1.007561]
[1723820712721,6.11547,2590.5,2589.5,3.0]
[1723820712886,6.11547,2590.5,2589.9,3.86107]
[1723820713209,3.86005,2590.7,2590.1,3.86082]
[1723820713406,6.11478,2590.9,2590.4,3.86032]
[1723820713407,2.2551,2590.9,2590.4,3.86032]
[1723820713606,3.85952,2591.0,2590.4,3.86032]
[1723820713607,3.85952,2591.0,2590.5,0.386032]
[1723820713919,2.4832,2591.2,2590.1,6.86077]
[1723820713920,3.86019,2590.6,2590.1,6.86077]
[1723820714084,3.85978,2590.9,2590.1,6.86077]
[1723820714286,3.85945,2591.1,2590.5,3.86014]
[1723820714528,3.85958,2591.0,2590.5,4.246154]
[1723820714819,3.85945,2591.1,2590.1,3.0]
[1723820715035,3.85945,2591.1,2590.5,3.86012]
[1723820715036,7.7189,2591.1,2590.5,3.86012]
[1723820715246,3.85953,2591.0,2590.5,4.246132]
[1723820715444,3.85953,2591.0,2590.3,3.86045]
[1723820715445,3.85984,2590.8,2590.3,3.86045]
[1723820715645,3.85953,2591.0,2590.3,3.86045]
[1723820715959,3.85981,2590.8,2590.2,3.8606]
[1723820716157,2.4832,2591.2,2590.2,3.8606]
[1723820716158,6.34249,2591.2,2590.2,0.3]
[1723820716359,3.85895,2591.4,2590.7,3.85985]
[1723820716668,3.85895,2591.4,2590.7,7.71972]
[1723820716669,3.85929,2591.2,2590.7,7.71972]
[1723820716975,0.385895,2591.4,2590.8,3.8597]
[1723820716976,3.85894,2591.4,2590.8,3.8597]
[1723820717127,3.85872,2591.6,2591.0,3.85943]
[1723820717450,3.8587,2591.6,2590.9,3.85965]
[1723820717624,3.85899,2591.4,2590.8,3.85972]
[1723820717824,3.85929,2591.2,2590.7,1.979]
[1723820718021,2.2746,2591.8,2591.0,3.85937]
[1723820718022,6.13302,2591.8,2591.0,3.85937]
[1723820718321,3.85872,2591.6,2591.0,3.85937]
[1723820718520,3.85872,2591.6,2591.1,3.620027]
[1723820718724,3.85871,2591.6,2591.1,3.620027]
[1723820718952,3.85817,2591.9,2591.4,3.85891]
[1723820719154,3.85809,2592.0,2591.4,4.3218479]
[1723820719360,3.85819,2591.9,2591.4,4.244681]
[1723820719750,3.858,2592.1,2591.4,4.32184427]
[1723820719936,3.8581,2592.0,2591.4,4.32184427]
[1723820720268,3.85827,2591.9,2591.4,0.385891]
[1723820720554,2.768259,2592.2,2591.2,23.64911]
[1723820720555,3.85863,2591.6,2591.2,19.79]
[1723820720758,3.85878,2591.5,2591.3,3.0]
[1723820721146,3.85891,2591.4,2591.3,3.0]
[1723820721345,3.85891,2591.4,2590.6,13.74977]
[1723820721346,3.8593,2591.2,2590.6,13.74977]
[1723820721545,4.37472647,2591.4,2590.8,3.8598]
[1723820721748,3.85901,2591.4,2590.8,3.8598]
[1723820722063,3.85917,2591.3,2590.9,3.0]
[1723820722262,3.85962,2591.0,2590.6,7.45]
[1723820722624,3.85976,2590.9,2590.6,7.45]
[1723820723232,3.85962,2591.0,2590.6,7.45]
[1723820723233,3.85982,2590.8,2590.6,7.45]
[1723820723469,3.85962,2591.0,2590.6,7.45]
[1723820723765,3.85974,2590.9,2590.6,7.45]
[1723820723944,3.85962,2591.0,2590.3,23.65051]
[1723820724150,3.85996,2590.7,2590.3,19.79]
[1723820724326,7.71948,2590.9,2590.3,19.79]
[1723820724529,3.85969,2590.9,2590.4,6.86039]
[1723820724727,2.3458,2591.2,2590.5,3.86017]
[1723820724965,3.85937,2591.1,2590.5,3.86017]
[1723820725186,3.85974,2590.9,2590.4,6.86037]
[1723820725478,3.85945,2591.1,2590.5,7.72032]
[1723820725694,3.85945,2591.1,2590.5,3.86015]
[1723820725695,3.85963,2591.0,2590.5,3.86015]
[1723820725824,3.85963,2591.0,2590.4,6.2875879]
[1723820725825,3.86025,2590.5,2590.4,3.0]
[1723820726026,3.86022,2590.6,2590.4,3.0]
[1723820726250,3.86022,2590.6,2590.1,3.0]
[1723820726426,3.86056,2590.3,2589.7,7.72275]
[1723820726626,3.85985,2590.8,2590.0,3.86091]
[1723820726627,6.29881,2590.6,2590.0,3.86091]
[1723820726827,6.2988,2590.6,2590.0,4.633115]
[1723820727036,6.85874,2591.6,2590.0,0.772205]
[1723820727037,3.86027,2590.5,2590.0,0.772205]
[1723820727232,3.86041,2590.4,2589.8,3.86116]
[1723820727485,3.86041,2590.4,2589.9,3.86114]
[1723820727683,3.86041,2590.4,2589.9,4.5582712]
[1723820727982,3.86041,2590.4,2589.9,8.4193012]
[1723820728150,3.86021,2590.6,2589.9,4.5581612]
[1723820728348,3.86036,2590.5,2589.9,8.4192212]
[1723820728564,3.86036,2590.5,2590.0,3.0]
[1723820728778,2.2548,2590.4,2589.6,7.45]
[1723820728934,2.2548,2590.4,2589.5,19.79]
[1723820728935,3.8614,2589.8,2589.5,19.79]
[1723820729137,3.8616,2589.6,2589.5,19.79]
[1723820729441,3.86146,2589.7,2588.7,7.45]
[1723820729442,3.86205,2589.3,2588.7,7.45]
[1723820729660,0.08218861,2589.2,2588.3,3.86347]
[1723820729843,0.08218861,2589.2,2587.9,6.28534]
[1723820729844,2.2548,2589.1,2587.9,6.28534]
[1723820730051,3.86271,2588.9,2588.0,0.07726379]
[1723820730271,3.86319,2588.6,2588.0,0.24985638]
[1723820730474,0.08218861,2589.0,2588.0,0.24985638]
[1723820730475,3.86351,2588.4,2588.0,0.24985638]
[1723820730646,3.86315,2588.6,2587.7,3.86437]
[1723820730844,3.8634,2588.4,2587.9,3.86402]
[1723820731145,3.86315,2588.6,2587.7,3.86437]
[1723820731364,3.86352,2588.4,2587.8,0.386437]
[1723820731570,3.86352,2588.4,2587.8,4.250687]
[1723820731764,3.8635,2588.4,2587.9,0.8115007]
[1723820732068,3.8635,2588.4,2587.8,0.386437]
[1723820732069,3.86355,2588.3,2587.8,0.386437]
[1723820732275,3.8635,2588.4,2588.0,0.17223881]
[1723820732276,3.86388,2588.1,2588.0,0.17223881]
[1723820732433,3.86388,2588.1,2587.4,0.387]
[1723820732434,4.25848686,2588.1,2587.4,0.387]
[1723820732638,3.86442,2587.8,2587.1,6.26452]
[1723820732833,3.86425,2587.9,2587.2,0.626452]
[1723820733085,2.33808861,2587.8,2586.7,4.37919357]
[1723820733377,7.72785,2588.1,2587.4,3.86485]
[1723820733667,3.86418,2587.9,2587.2,3.86516]
[1723820733842,3.86418,2587.9,2587.0,3.86542]
[1723820733843,3.86418,2587.9,2587.0,3.86536]
[1723820734045,3.86418,2587.9,2587.1,0.386542]
[1723820734234,3.86458,2587.6,2587.1,0.55834543]
[1723820734439,3.86444,2587.7,2587.1,0.17180343]
[1723820734668,3.86444,2587.7,2587.1,3.17180343]
[1723820734856,3.8642,2587.9,2587.2,3.86516]
[1723820735059,3.8642,2587.9,2587.3,3.70369634]
[1723820735247,7.72904,2587.7,2587.3,3.17173311]
[1723820735445,3.86449,2587.7,2587.3,0.17173311]
[1723820735650,3.86444,2587.7,2587.2,3.86506]
[1723820735961,2.4758,2588.2,2587.4,0.17169359]
[1723820736136,3.8646,2587.6,2587.3,0.17173894]
[1723820736342,3.86528,2587.2,2586.6,3.86601]
[1723820736768,3.86528,2587.2,2586.0,4.38029357]
[1723820736769,3.86594,2586.7,2586.0,6.17277]
[1723820737088,3.86521,2587.2,2586.0,6.17277]
[1723820737089,3.86523,2587.2,2586.0,2.923177]
[1723820737244,3.86578,2586.8,2586.2,3.86658]
[1723820737442,3.86492,2587.4,2586.0,6.17278]
[1723820737443,3.86594,2586.7,2586.0,6.17278]
[1723820737639,3.86628,2586.5,2586.1,0.65769723]
[1723820737877,2.4069,2586.8,2585.5,2.3549]
[1723820737878,3.86596,2586.7,2585.7,0.07732652]
[1723820738044,3.86596,2586.7,2586.1,3.86674]
[1723820738239,6.27217,2587.2,2586.4,3.86628]
[1723820738589,3.86549,2587.0,2586.2,4.30456036]
[1723820738750,3.86565,2586.9,2586.2,4.30456036]
[1723820738937,2.4069,2587.2,2586.3,0.43045604]
[1723820739141,3.86622,2586.5,2585.8,6.16865]
[1723820739468,0.08218861,2587.1,2585.8,6.16865]
[1723820739469,3.86585,2586.8,2585.9,0.65728615]
[1723820739671,3.86555,2587.0,2586.4,3.86623]
[1723820739860,3.86524,2587.2,2586.4,3.86623]
[1723820740075,2.2695,2587.6,2586.8,3.86576]
[1723820740076,9.99886,2587.6,2586.8,3.86576]
[1723820740370,6.13415,2587.6,2587.0,3.86547]
[1723820740545,3.86435,2587.8,2587.0,3.86547]
[1723820740546,3.86448,2587.7,2587.0,3.86547]
[1723820740749,3.86448,2587.7,2587.1,4.251867]
[1723820741056,3.86455,2587.7,2587.1,0.386547]
[1723820741262,3.86475,2587.5,2587.1,0.386547]
[1723820741470,4.250775,2587.8,2587.0,6.86542]
[1723820741709,3.8648,2587.5,2587.1,0.686542]
[1723820741842,0.08218861,2587.5,2587.0,3.0]
[1723820742043,3.86566,2586.9,2586.2,3.86663]
[1723820742242,3.86566,2586.9,2586.3,7.03978792]
[1723820742460,3.86533,2587.1,2586.4,3.86628]
[1723820742780,7.73077,2587.1,2586.5,3.0]
[1723820742974,3.86533,2587.1,2586.5,3.0]
[1723820743185,6.22827,2587.4,2586.8,3.86574]
[1723820743474,3.86542,2587.1,2586.9,0.16751139]
[1723820743674,3.86542,2587.1,2586.5,22.79]
[1723820743675,7.73085,2587.1,2586.5,22.79]
[1723820743897,3.86542,2587.1,2586.5,26.30968798]
[1723820744074,3.86481,2587.5,2586.8,3.86566]
[1723820744280,3.86481,2587.5,2586.9,0.386566]
[1723820744485,3.86494,2587.4,2586.9,0.55413281]
[1723820744687,2.3633,2587.7,2586.9,0.16756681]
[1723820744897,3.86498,2587.4,2586.9,0.16756681]
[1723820745063,3.86503,2587.3,2586.9,0.16756681]
[1723820745603,3.86536,2587.1,2586.7,3.0]
[1723820745794,3.86533,2587.1,2587.0,0.16752144]
[1723820745995,3.86533,2587.1,2586.6,3.0]
[1723820746218,3.86511,2587.3,2587.0,0.16752144]
[1723820746352,3.86511,2587.3,2586.7,3.86592]
[1723820746694,7.73036,2587.2,2587.1,0.16747607]
[1723820746988,0.08218861,2587.4,2586.6,6.21969098]
[1723820746989,3.8657,2586.9,2586.6,3.0]
[1723820747304,3.86552,2587.0,2586.6,3.0]
[1723820747454,3.86511,2587.3,2586.7,0.3]
[1723820747653,2.2624,2587.5,2586.7,0.3]
[1723820747654,3.865,2587.4,2586.7,3.3]
[1723820747861,3.865,2587.4,2586.8,0.716596]
[1723820748082,3.86519,2587.2,2586.8,0.716596]
[1723820748386,0.08218861,2587.1,2586.7,3.0]
[1723820748556,0.08218861,2587.1,2586.4,3.86629]
[1723820748557,3.86572,2586.9,2586.4,3.86629]
[1723820748753,7.73029,2587.3,2586.6,3.86598]
[1723820748953,3.86512,2587.3,2586.7,3.86592]
[1723820749153,7.73025,2587.3,2586.7,4.939107]
[1723820749354,2.2624,2587.5,2585.7,0.59468974]
[1723820749355,3.86727,2585.8,2585.7,0.59468974]
[1723820749589,7.73454,2585.8,2585.7,0.19050379]
[1723820749775,7.73454,2585.8,2584.2,6.20075]
[1723820749776,3.86879,2584.8,2584.2,6.20075]
[1723820749976,3.86895,2584.7,2583.9,3.87009]
[1723820750166,6.36047,2585.1,2583.8,2.3311]
[1723820750167,3.8693,2584.5,2583.8,2.3311]
[1723820750356,3.86908,2584.6,2583.8,2.3311]
[1723820750551,3.86946,2584.4,2583.8,6.821445]
[1723820750753,3.86946,2584.4,2583.8,2.951245]
[1723820751300,3.86883,2584.8,2583.8,2.951245]
[1723820751466,4.11771,2585.0,2584.3,3.86947]
[1723820751789,4.11771,2585.0,2583.9,0.6821565]
[1723820751790,3.86879,2584.8,2584.1,7.73939]
[1723820752005,3.86879,2584.8,2584.1,3.86969]
[1723820752308,3.86862,2584.9,2584.2,7.73913]
[1723820752512,3.86862,2584.9,2584.3,3.0]
[1723820752721,4.11771,2585.0,2584.3,3.0]
[1723820752924,4.11771,2585.0,2584.4,3.8693]
[1723820753537,0.24921,2585.0,2584.3,3.0]
[1723820753809,0.08218861,2584.9,2584.3,3.0]
[1723820753995,3.86931,2584.5,2583.9,3.0]
[1723820754399,3.86917,2584.6,2583.9,3.0]
[1723820754601,7.73772,2584.8,2583.9,3.0]
[1723820754912,7.73772,2584.8,2583.4,2.3372]
[1723820754913,3.86862,2584.9,2584.3,3.8695]
[1723820755075,3.86883,2584.8,2584.2,2.3372]
[1723820755286,3.86883,2584.8,2584.4,0.11568388]
[1723820755601,4.137802,2585.0,2584.3,3.8695]
[1723820755777,4.137802,2585.0,2584.5,0.11563842]
[1723820755972,0.4137802,2584.9,2584.4,3.98504388]
[1723820756208,0.4137802,2584.9,2584.6,0.11559296]
[1723820756389,3.86824,2585.2,2584.5,3.98483842]
[1723820756611,3.86824,2585.2,2584.7,0.11554751]
[1723820756824,3.86824,2585.2,2584.5,3.8692]
[1723820756825,3.86841,2585.1,2584.6,0.11558136]
[1723820757066,3.86862,2584.9,2584.8,0.11549046]
[1723820757199,3.8678,2585.5,2584.7,0.11553591]
[1723820757200,7.73754,2584.8,2584.7,0.11553591]
[1723820757376,3.869,2584.7,2583.4,3.07738883]
[1723820757581,4.2559,2584.7,2584.1,3.86969]
[1723820757882,6.32895,2585.0,2584.2,0.11580091]
[1723820757883,3.86867,2584.9,2584.2,0.11580091]
[1723820758195,3.86867,2584.9,2584.3,3.86941]
[1723820758395,3.86836,2585.1,2584.2,0.11580091]
[1723820758603,2.4604,2585.4,2584.2,0.11580091]
[1723820758604,3.86814,2585.3,2584.7,3.8688]
[1723820758840,3.86814,2585.3,2584.7,7.73763]
[1723820759035,4.65246115,2585.3,2584.8,0.11548176]
[1723820759246,3.86778,2585.5,2584.9,3.86853]
[1723820759383,3.86749,2585.7,2585.1,3.86823]
[1723820759607,3.86749,2585.7,2585.1,3.8682]
[1723820759860,3.86719,2585.9,2585.2,0.11521591]
[1723820760032,3.86689,2586.1,2585.5,3.86762]
[1723820760358,2.3759,2586.2,2585.6,0.11503131]
[1723820760359,3.86733,2585.8,2585.6,0.11503131]
[1723820760523,3.86742,2585.7,2585.3,3.0]
[1723820760709,3.86802,2585.3,2585.2,7.45]
[1723820760910,3.86802,2585.3,2584.8,3.0]
[1723820761269,3.86791,2585.4,2584.8,6.86875]
[1723820761405,3.86791,2585.4,2584.8,3.0]
[1723820761605,4.26295986,2585.4,2584.7,3.0]
[1723820761806,0.39500986,2585.4,2584.7,3.0]
[1723820762006,0.624279,2586.0,2584.7,3.0]
[1723820762007,4.491339,2586.0,2585.4,3.86777]
[1723820762207,4.491339,2586.0,2585.2,3.86806]
[1723820762208,3.86706,2586.0,2585.2,3.86806]
[1723820762473,3.86738,2585.8,2585.2,3.86806]
[1723820762766,2.4118,2586.1,2585.4,3.86785]
[1723820762908,2.2648,2586.4,2585.4,3.86785]
[1723820763113,3.86685,2586.1,2585.5,3.86762]
[1723820763318,3.86681,2586.2,2585.4,3.86778]
[1723820763517,3.86739,2585.8,2585.2,3.8681]
[1723820763764,3.86739,2585.8,2585.3,3.0]
[1723820763765,3.86767,2585.6,2585.3,3.0]
[1723820763968,3.86767,2585.6,2585.1,3.0]
[1723820764313,3.86773,2585.5,2585.2,0.11493467]
[1723820764529,3.86802,2585.3,2585.2,0.11493467]
[1723820764729,6.42747861,2585.3,2584.5,11.31913]
[1723820764933,7.73625,2585.3,2585.2,0.11493467]
[1723820765173,3.86847,2585.0,2584.4,3.86925]
[1723820765376,7.73703,2585.0,2584.4,6.465895]
[1723820765581,3.86847,2585.0,2584.5,0.11154702]
[1723820765951,0.41953902,2585.0,2584.5,0.11154702]
[1723820766268,3.8687,2584.9,2584.6,0.11162623]
[1723820766437,3.8687,2584.9,2584.3,3.86941]
[1723820766636,3.86901,2584.7,2584.4,0.11179255]
[1723820766833,3.86912,2584.6,2584.4,0.11179255]
[1723820767085,3.86912,2584.6,2584.5,0.11174709]
[1723820767296,3.86871,2584.9,2584.1,19.79]
[1723820767439,3.86871,2584.9,2584.5,0.11174709]
[1723820767796,0.612482,2585.0,2584.5,3.86921]
[1723820767949,6.25056,2585.4,2584.7,3.86883]
[1723820768152,6.25056,2585.4,2584.6,0.11170164]
[1723820768153,3.86829,2585.2,2584.6,0.11170164]
[1723820768487,3.41919,2585.4,2584.7,0.11165618]
[1723820768488,3.86862,2584.9,2584.7,0.11165618]
[1723820768638,3.86862,2584.9,2584.4,3.0]
[1723820768839,3.86862,2584.9,2584.5,0.11174709]
[1723820769387,3.86892,2584.7,2584.4,3.0]
[1723820769594,0.46905061,2584.8,2584.2,3.0]
[1723820769595,3.86932,2584.5,2584.2,3.0]
[1723820769794,4.256252,2584.5,2584.1,19.79]
[1723820769937,3.86932,2584.5,2584.1,19.79]
[1723820770349,3.86937,2584.4,2584.1,19.79]
[1723820770549,7.73842,2584.6,2583.9,7.74005]
[1723820770849,3.86924,2584.5,2583.9,3.87002]
[1723820771006,3.86937,2584.4,2584.0,3.0]
[1723820771325,3.86969,2584.2,2583.9,3.0]
[1723820771464,3.86969,2584.2,2583.2,2.3699]
[1723820771465,3.87006,2584.0,2583.2,2.3699]
[1723820771789,3.87031,2583.8,2583.2,6.24092]
[1723820772170,3.87043,2583.7,2583.2,6.24092]
[1723820772373,3.95230861,2583.9,2583.2,6.24092]
[1723820772558,3.87028,2583.8,2583.2,6.24092]
[1723820772758,3.95246861,2583.8,2583.2,6.24092]
[1723820773061,3.87065,2583.6,2583.0,3.87137]
[1723820773412,3.87065,2583.6,2583.0,7.74275]
[1723820773717,7.74074,2583.8,2583.0,3.87137]
[1723820774006,3.8705,2583.7,2583.0,4.492817]
[1723820774221,3.95268861,2583.7,2583.1,3.87128]
[1723820774396,3.8705,2583.7,2583.2,3.87116]
[1723820774599,3.87036,2583.8,2583.2,3.87108]
[1723820774799,3.87036,2583.8,2583.3,3.0]
[1723820775028,3.87052,2583.7,2583.2,3.87114]
[1723820775162,3.8699,2584.1,2583.5,3.87069]
[1723820775366,3.8699,2584.1,2583.3,7.258064]
[1723820775367,3.87006,2584.0,2583.4,3.87084]
[1723820775672,3.87006,2584.0,2583.5,6.87069]
[1723820775979,3.87006,2584.0,2583.4,6.87086]
[1723820776184,7.74031,2583.9,2583.4,3.0]
[1723820776383,3.87012,2583.9,2583.4,3.0]
[1723820776708,7.74036,2583.9,2583.4,3.0]
[1723820776872,7.74036,2583.9,2583.3,3.871]
[1723820777220,3.8703,2583.8,2583.4,3.0]
[1723820777519,3.87012,2583.9,2583.4,3.0]
[1723820777666,7.74036,2583.9,2583.4,3.0]
[1723820777866,3.87036,2583.8,2583.4,3.0]
[1723820778240,4.668643,2583.9,2583.3,7.74184]
[1723820778520,4.668643,2583.9,2583.3,3.87091]
[1723820778686,8.538863,2583.9,2583.3,3.87091]
[1723820778883,3.87029,2583.8,2583.3,3.87091]
[1723820779085,3.87027,2583.8,2583.1,6.87117]
[1723820779301,0.08218861,2583.7,2583.4,0.11276376]
[1723820779467,3.8706,2583.6,2583.4,0.11276376]
[1723820779670,0.24487,2584.1,2583.5,0.11271826]
[1723820779671,7.74016,2584.0,2583.5,0.11271826]
[1723820779873,2.4487,2584.2,2583.5,3.98332826]
[1723820779874,6.31847,2584.2,2583.5,3.98332826]
[1723820780070,3.86976,2584.2,2583.7,3.8704]
[1723820780268,3.86947,2584.4,2583.8,0.11296194]
[1723820780469,0.629467,2584.4,2583.8,0.11296194]
[1723820780704,3.86825,2585.2,2584.6,3.86899]
[1723820780915,3.86825,2585.2,2584.6,7.73798]
[1723820781119,3.86825,2585.2,2584.4,7.73855]
[1723820781324,3.86857,2585.0,2584.7,0.11246857]
[1723820781470,4.890868,2585.2,2584.7,0.11246857]
[1723820781671,3.86794,2585.4,2584.8,0.11242312]
[1723820781928,3.86821,2585.2,2584.8,0.11242312]
[1723820782069,3.86821,2585.2,2584.9,0.11216875]
[1723820782271,3.86821,2585.2,2584.6,3.86895]
[1723820782520,3.86847,2585.0,2584.7,0.11225964]
[1723820782870,3.86847,2585.0,2584.5,3.0]
[1723820783312,7.73708,2585.0,2584.5,3.0]
[1723820783619,3.8678,2585.5,2584.6,0.11228478]
[1723820783776,3.86787,2585.4,2584.8,7.73733]
[1723820784118,3.86717,2585.9,2584.9,3.189517]
[1723820784119,2.4413,2585.9,2584.9,3.189517]
[1723820784429,3.86751,2585.7,2585.1,3.86831]
[1723820784588,0.386751,2585.6,2585.1,3.86824]
[1723820784921,3.86691,2586.1,2585.3,3.86797]
[1723820784922,3.86693,2586.1,2585.3,3.86797]
[1723820785075,3.86706,2586.0,2585.4,3.86784]
[1723820785271,3.86706,2586.0,2585.3,3.86797]
[1723820785272,3.86693,2586.1,2585.5,3.97917091]
[1723820785525,3.86693,2586.1,2585.5,0.11146091]
[1723820785526,3.86747,2585.7,2585.5,0.11146091]
[1723820785725,3.94975861,2585.6,2585.5,0.11146091]
[1723820785938,3.86796,2585.4,2584.9,10.45]
[1723820786223,0.39497586,2585.6,2584.9,10.45]
[1723820786224,3.8678,2585.5,2584.9,3.0]
[1723820786387,7.73587,2585.4,2584.9,3.0]
[1723820786716,1.06184045,2585.5,2584.9,6.86851]
[1723820786918,4.34481447,2585.6,2585.0,3.86846]
[1723820787373,10.13994,2586.0,2585.4,3.86777]
[1723820787578,12.18966,2586.9,2585.4,4.254547]
[1723820787579,3.86675,2586.2,2585.4,4.254547]
[1723820787902,3.86675,2586.2,2585.5,3.0]
[1723820788108,2.4058,2586.4,2585.5,3.0]
[1723820788109,3.86699,2586.0,2585.5,3.0]
[1723820788316,6.27223,2586.4,2585.3,3.0]
[1723820788317,0.08218861,2585.9,2585.3,3.0]
[1723820788521,0.08218861,2585.9,2585.1,7.45]
[1723820788522,3.86759,2585.6,2585.2,3.0]
[1723820789313,3.86783,2585.5,2585.2,3.0]
[1723820789475,3.86783,2585.5,2585.1,3.0]
[1723820789701,3.86746,2585.7,2585.1,3.0]
[1723820790038,3.86776,2585.5,2585.1,3.0]
[1723820790248,3.86825,2585.2,2585.0,19.79]
[1723820790414,3.86807,2585.3,2584.8,3.86874]
[1723820790622,3.95037861,2585.2,2584.5,7.45]
[1723820790949,3.86819,2585.2,2584.6,7.73803]
[1723820791112,3.86819,2585.2,2584.6,7.73797]
[1723820791562,3.86819,2585.2,2584.7,3.0]
[1723820791754,3.86792,2585.4,2584.8,3.86875]
[1723820791936,0.631548,2585.8,2584.7,3.0]
[1723820791937,3.95034861,2585.3,2584.7,3.0]
[1723820792104,0.08218861,2585.2,2584.7,3.0]
[1723820792299,3.8687,2584.9,2584.6,3.0]
[1723820792551,3.8687,2584.9,2584.4,22.1775]
[1723820792552,3.86871,2584.9,2584.4,19.79]
[1723820792700,0.386871,2584.8,2584.1,2.4618]
[1723820792900,3.869,2584.7,2584.2,3.86953]
[1723820793251,3.86838,2585.1,2584.4,3.86926]
[1723820793453,2.3551,2585.4,2584.2,5.247798]
[1723820793667,3.86781,2585.5,2584.8,3.86866]
[1723820793806,0.08218861,2585.4,2584.7,2.4684]
[1723820794012,2.342,2585.2,2584.5,7.45]
[1723820794303,3.86884,2584.8,2584.6,0.11017239]
[1723820794703,3.86884,2584.8,2584.3,3.0]
[1723820794929,3.86867,2584.9,2584.3,3.0]
[1723820794930,3.86867,2584.9,2584.4,3.86933]
[1723820795154,3.86867,2584.9,2584.5,3.0]
[1723820795155,3.86879,2584.8,2584.5,3.0]
[1723820795365,3.86879,2584.8,2584.4,0.1102633]
[1723820795646,8.534548,2584.9,2584.5,0.10663636]
[1723820795865,7.73742,2584.9,2584.5,0.10663636]
[1723820796152,3.8688,2584.8,2584.6,0.10659091]
[1723820796472,3.8688,2584.8,2584.3,3.0]
[1723820796473,3.86892,2584.7,2584.3,3.0]
[1723820796608,3.86892,2584.7,2584.2,3.0]
[1723820797172,2.2568,2584.6,2583.7,3.87032]
[1723820797317,7.73924,2584.3,2583.7,3.87032]
[1723820797517,3.8697,2584.2,2583.7,3.87032]
[1723820797922,3.86929,2584.5,2583.5,2.2806]
[1723820798165,3.86886,2584.8,2584.2,3.86966]
[1723820798482,3.86886,2584.8,2584.3,0.386966]
[1723820798621,3.86892,2584.7,2584.2,3.86966]
[1723820799000,6.36153,2585.0,2584.3,6.86937]
[1723820799206,6.36153,2585.0,2584.3,3.0]
[1723820799207,3.86878,2584.8,2584.3,3.0]
[1723820799953,3.86908,2584.6,2584.3,3.0]
[1723820800254,3.86908,2584.6,2584.1,3.0]
[1723820800255,3.8694,2584.4,2584.1,3.0]
[1723820800549,3.86908,2584.6,2584.0,6.86982]
[1723820800751,3.86937,2584.4,2583.7,2.4125]
[1723820801057,3.86937,2584.4,2583.7,6.28277]
[1723820801234,7.73837,2584.6,2584.0,3.86995]
[1723820801431,4.642997,2584.6,2583.9,3.87009]
[1723820801634,3.86864,2584.9,2583.9,3.87009]
[1723820801635,3.86944,2584.4,2583.9,3.87009]
[1723820802520,3.86924,2584.5,2584.0,3.86996]
[1723820802739,3.86901,2584.7,2584.2,3.86956]
[1723820803402,3.869,2584.7,2584.2,3.86956]
[1723820803807,3.86872,2584.9,2584.2,4.643504]
[1723820804052,3.86842,2585.1,2584.4,3.86929]
[1723820804351,3.8684,2585.1,2584.5,4.256069]
[1723820804555,3.86892,2584.7,2584.3,5.3573]
[1723820804787,3.86892,2584.7,2584.3,3.0]
[1723820804912,3.86922,2584.5,2584.2,3.0]
[1723820805438,4.255812,2584.7,2584.1,3.0]
[1723820805643,3.86892,2584.7,2584.1,3.0]
[1723820806348,7.7374,2584.9,2584.1,6.86977]
[1723820806642,3.86865,2584.9,2584.1,6.86977]
[1723820806840,0.08218861,2585.0,2584.3,3.86946]
[1723820807051,3.86847,2585.0,2584.4,3.0]
[1723820807407,3.86842,2585.1,2584.4,3.0]
[1723820807637,10.17212,2585.3,2584.4,3.86928]
[1723820807820,0.42493028,2585.2,2584.6,3.86906]
[1723820808157,3.86818,2585.2,2584.6,3.86906]
[1723820808335,3.86834,2585.1,2584.4,3.86925]
[1723820808649,7.73677,2585.1,2584.4,3.86925]
[1723820808833,5.4009337,2585.1,2584.5,3.86921]
[1723820809038,1.5325937,2585.1,2584.5,3.86921]
[1723820809238,5.4009437,2585.1,2584.6,0.10690707]